[Event "Late-Titled-Tuesday-Blitz-February-27-2024"]
[Site "Chess.com"]
[Date "2024.02.27"]
[Round "1"]
[White "DonMicheleCorleone"]
[Black "HansOnTwitch"]
[Result "0-1"]
[WhiteElo "2522"]
[BlackElo "3086"]
[TimeControl "180+1"]
[EndTime "14:06:59 PST"]
[Termination "HansOnTwitch won by resignation"]

1. e4 {[%clk 0:03:00.9]} 1... c5 {[%clk 0:02:59.9]} 2. Nc3 {[%clk 0:02:59.4]}
2... Nc6 {[%clk 0:02:59.6]} 3. Nf3 {[%clk 0:02:58.7]} 3... g6 {[%clk 0:03:00]}
4. Bb5 {[%clk 0:02:43.7]} 4... Bg7 {[%clk 0:02:59.8]} 5. O-O {[%clk 0:02:42.6]}
5... Nd4 {[%clk 0:02:57.4]} 6. Ba4 {[%clk 0:02:41]} 6... a6 {[%clk 0:02:50.6]}
7. Nxd4 {[%clk 0:02:41.1]} 7... cxd4 {[%clk 0:02:50.7]} 8. Ne2 {[%clk
0:02:41.6]} 8... b5 {[%clk 0:02:49.8]} 9. Bb3 {[%clk 0:02:41.8]} 9... Bb7 {[%clk
0:02:50.1]} 10. d3 {[%clk 0:02:42.3]} 10... e6 {[%clk 0:02:49.9]} 11. f3 {[%clk
0:02:42.4]} 11... Ne7 {[%clk 0:02:49.4]} 12. a4 {[%clk 0:02:42.1]} 12... O-O
{[%clk 0:02:49.1]} 13. Qe1 {[%clk 0:02:41]} 13... Nc6 {[%clk 0:02:48.6]} 14.
axb5 {[%clk 0:02:32.7]} 14... axb5 {[%clk 0:02:48.4]} 15. Rxa8 {[%clk
0:02:32.7]} 15... Bxa8 {[%clk 0:02:41.2]} 16. Bd2 {[%clk 0:02:33.4]} 16... d6
{[%clk 0:02:40.3]} 17. Qg3 {[%clk 0:02:16.9]} 17... Kh8 {[%clk 0:02:36.7]} 18.
Ra1 {[%clk 0:02:16.3]} 18... Bb7 {[%clk 0:02:36.4]} 19. Bf4 {[%clk 0:02:04.9]}
19... e5 {[%clk 0:02:19.4]} 20. Bg5 {[%clk 0:01:59.9]} 20... Qc7 {[%clk
0:02:19.5]} 21. Bd2 {[%clk 0:01:22.2]} 21... f5 {[%clk 0:02:19.5]} 22. h4 {[%clk
0:01:19.5]} 22... f4 {[%clk 0:02:18.1]} 23. Qh2 {[%clk 0:01:16.6]} 23... Qd7
{[%clk 0:02:05.8]} 24. h5 {[%clk 0:01:14.5]} 24... g5 {[%clk 0:02:06.1]} 25. h6
{[%clk 0:01:14.2]} 25... Bf6 {[%clk 0:02:06.5]} 26. Qh5 {[%clk 0:01:10]} 26...
Ra8 {[%clk 0:02:00]} 27. Rxa8+ {[%clk 0:01:08.6]} 27... Bxa8 {[%clk 0:02:00.9]}
28. Kf2 {[%clk 0:01:07.1]} 28... Bb7 {[%clk 0:01:57.6]} 29. Ng1 {[%clk
0:01:07.1]} 29... Bc8 {[%clk 0:01:56.6]} 30. Nh3 {[%clk 0:01:07.2]} 30... Qe7
{[%clk 0:01:56.6]} 31. g4 {[%clk 0:00:55.8]} 31... Nd8 {[%clk 0:01:43.2]} 32.
Bb4 {[%clk 0:00:52.1]} 32... Bd7 {[%clk 0:01:41.6]} 33. Ng1 {[%clk 0:00:35.8]}
33... Ne6 {[%clk 0:01:30.3]} 34. Qh3 {[%clk 0:00:17.7]} 34... Nc5 {[%clk
0:01:26.6]} 35. Bd5 {[%clk 0:00:16.9]} 35... Be8 {[%clk 0:01:24.2]} 36. Ne2
{[%clk 0:00:15.9]} 36... Qa7 {[%clk 0:01:24.1]} 37. Nc1 {[%clk 0:00:15.7]} 37...
Qa1 {[%clk 0:01:22.7]} 38. Nb3 {[%clk 0:00:14.9]} 38... Qxb2 {[%clk 0:01:22.7]}
39. Bxc5 {[%clk 0:00:11.7]} 39... Qxc2+ {[%clk 0:01:22.5]} 40. Kg1 {[%clk
0:00:10.4]} 40... dxc5 {[%clk 0:01:22.8]} 41. Qg2 {[%clk 0:00:09.9]} 41... Qxg2+
{[%clk 0:01:13.3]} 42. Kxg2 {[%clk 0:00:10.3]} 42... Be7 {[%clk 0:01:13.9]} 43.
Na5 {[%clk 0:00:10.1]} 43... Bf8 {[%clk 0:01:06.4]} 44. Bc6 {[%clk 0:00:07.5]}
44... Bxc6 {[%clk 0:01:05.9]} 45. Nxc6 {[%clk 0:00:08.4]} 45... Bxh6 {[%clk
0:01:00.3]} 46. Nxe5 {[%clk 0:00:08.5]} 46... Bf8 {[%clk 0:01:00.2]} 47. Nf7+
{[%clk 0:00:07.5]} 47... Kg8 {[%clk 0:01:00.2]} 48. Nxg5 {[%clk 0:00:08.2]}
48... b4 {[%clk 0:01:00.8]} 49. Ne6 {[%clk 0:00:02.8]} 49... b3 {[%clk 0:01:01]}
50. Nxc5 {[%clk 0:00:02.4]} 50... Bxc5 {[%clk 0:01:00.8]} 0-1

[Event "Late-Titled-Tuesday-Blitz-February-27-2024"]
[Site "Chess.com"]
[Date "2024.02.27"]
[Round "1"]
[White "Andreikka"]
[Black "elmusmolamas"]
[Result "1-0"]
[WhiteElo "2960"]
[BlackElo "2504"]
[TimeControl "180+1"]
[EndTime "14:07:00 PST"]
[Termination "Andreikka won by resignation"]

1. e4 {[%clk 0:02:53.7]} 1... c6 {[%clk 0:02:56]} 2. d4 {[%clk 0:02:47.7]} 2...
g6 {[%clk 0:02:56.3]} 3. h4 {[%clk 0:02:41.6]} 3... d5 {[%clk 0:02:55.9]} 4. e5
{[%clk 0:02:37.2]} 4... h5 {[%clk 0:02:54.3]} 5. c4 {[%clk 0:02:31.7]} 5... Nh6
{[%clk 0:02:45.2]} 6. Nc3 {[%clk 0:02:28.9]} 6... Bf5 {[%clk 0:02:15.1]} 7. Qb3
{[%clk 0:02:23.7]} 7... Qd7 {[%clk 0:01:29]} 8. Nf3 {[%clk 0:02:10.7]} 8... e6
{[%clk 0:01:13.9]} 9. Be2 {[%clk 0:01:52.5]} 9... Bg4 {[%clk 0:01:06.6]} 10.
Bxh6 {[%clk 0:01:37.2]} 10... Bxh6 {[%clk 0:01:06.1]} 11. O-O {[%clk 0:01:36.5]}
11... O-O {[%clk 0:00:53.3]} 12. Rfd1 {[%clk 0:01:16.6]} 12... Qe7 {[%clk
0:00:52.7]} 13. g3 {[%clk 0:01:15.3]} 13... b6 {[%clk 0:00:50.5]} 14. Nh2 {[%clk
0:01:11.5]} 14... Bxe2 {[%clk 0:00:48.9]} 15. Nxe2 {[%clk 0:01:12.4]} 15... f6
{[%clk 0:00:45.2]} 16. exf6 {[%clk 0:01:07.9]} 16... Qxf6 {[%clk 0:00:46.1]} 17.
f4 {[%clk 0:01:07.1]} 17... Qf5 {[%clk 0:00:43.1]} 18. Rac1 {[%clk 0:01:00.8]}
18... Kh7 {[%clk 0:00:37.3]} 19. Qd3 {[%clk 0:00:54.2]} 19... Qh3 {[%clk
0:00:32.2]} 20. Nf3 {[%clk 0:00:48]} 20... Nd7 {[%clk 0:00:16.5]} 21. cxd5
{[%clk 0:00:47.6]} 21... cxd5 {[%clk 0:00:15.6]} 22. Rc7 {[%clk 0:00:44.4]}
22... Rf7 {[%clk 0:00:16.3]} 23. Rdc1 {[%clk 0:00:41]} 23... Raf8 {[%clk
0:00:16.4]} 24. Ne5 {[%clk 0:00:41.2]} 24... Nxe5 {[%clk 0:00:16.3]} 25. dxe5
{[%clk 0:00:42.1]} 25... Bxf4 {[%clk 0:00:13.5]} 26. Nxf4 {[%clk 0:00:40.8]}
26... Qg4 {[%clk 0:00:13.4]} 27. Kh2 {[%clk 0:00:38.9]} 27... Kh6 {[%clk
0:00:11.8]} 28. Rxf7 {[%clk 0:00:37.9]} 28... Rxf7 {[%clk 0:00:12.7]} 29. Rf1
{[%clk 0:00:37.1]} 29... Kh7 {[%clk 0:00:12.2]} 30. Kg2 {[%clk 0:00:28.5]} 30...
Rf5 {[%clk 0:00:12.7]} 31. Nxe6 {[%clk 0:00:26.9]} 31... Rxf1 {[%clk 0:00:11.8]}
32. Ng5+ {[%clk 0:00:26.8]} 32... Kh6 {[%clk 0:00:11.6]} 33. Qxf1 {[%clk
0:00:27]} 33... Qc8 {[%clk 0:00:07.5]} 34. Qf7 {[%clk 0:00:25]} 34... Qc2+
{[%clk 0:00:07.8]} 35. Kh3 {[%clk 0:00:25.7]} 35... Qf5+ {[%clk 0:00:08.1]} 36.
Qxf5 {[%clk 0:00:25.7]} 36... gxf5 {[%clk 0:00:09]} 37. Ne6 {[%clk 0:00:25.9]}
1-0

[Event "Late-Titled-Tuesday-Blitz-February-27-2024"]
[Site "Chess.com"]
[Date "2024.02.27"]
[Round "1"]
[White "SchmakAttack"]
[Black "N_Mullodzhanov"]
[Result "1-0"]
[WhiteElo "2824"]
[BlackElo "2464"]
[TimeControl "180+1"]
[EndTime "14:07:01 PST"]
[Termination "SchmakAttack won by checkmate"]

1. d4 {[%clk 0:02:59.6]} 1... Nf6 {[%clk 0:02:59.9]} 2. Bf4 {[%clk 0:02:54]}
2... g6 {[%clk 0:03:00]} 3. Nc3 {[%clk 0:02:53.5]} 3... d5 {[%clk 0:02:59.8]} 4.
e3 {[%clk 0:02:53.9]} 4... Bg7 {[%clk 0:03:00]} 5. h4 {[%clk 0:02:54.4]} 5... c5
{[%clk 0:02:57]} 6. dxc5 {[%clk 0:02:45.4]} 6... Nc6 {[%clk 0:02:54.6]} 7. Bb5
{[%clk 0:02:33.6]} 7... Qa5 {[%clk 0:02:39.4]} 8. Qd2 {[%clk 0:02:11.6]} 8... a6
{[%clk 0:02:13.2]} 9. Ba4 {[%clk 0:01:54.9]} 9... Qxc5 {[%clk 0:02:07.4]} 10.
O-O-O {[%clk 0:01:49.5]} 10... b5 {[%clk 0:01:36.4]} 11. Bb3 {[%clk 0:01:49.2]}
11... e6 {[%clk 0:01:31.7]} 12. Nf3 {[%clk 0:01:35.3]} 12... a5 {[%clk
0:01:26.7]} 13. a4 {[%clk 0:00:57.3]} 13... b4 {[%clk 0:01:26.4]} 14. Nb5 {[%clk
0:00:57.2]} 14... Ne4 {[%clk 0:01:14.3]} 15. Qe1 {[%clk 0:00:52.8]} 15... O-O
{[%clk 0:01:10.1]} 16. Ng5 {[%clk 0:00:51.3]} 16... Qe7 {[%clk 0:00:43.2]} 17.
Nxe4 {[%clk 0:00:41.1]} 17... dxe4 {[%clk 0:00:44.1]} 18. Bg5 {[%clk 0:00:27.1]}
18... f6 {[%clk 0:00:42.9]} 19. Bf4 {[%clk 0:00:27]} 19... f5 {[%clk 0:00:38.3]}
20. Bg5 {[%clk 0:00:27.3]} 20... Bf6 {[%clk 0:00:36.1]} 21. Bxf6 {[%clk
0:00:26.6]} 21... Qxf6 {[%clk 0:00:36]} 22. Rd6 {[%clk 0:00:25.4]} 22... Ne5
{[%clk 0:00:26.5]} 23. Nc7 {[%clk 0:00:25.6]} 23... Ra7 {[%clk 0:00:25.8]} 24.
Nxe6 {[%clk 0:00:25.5]} 24... Qe7 {[%clk 0:00:17.3]} 25. Nxf8+ {[%clk 0:00:21]}
25... Kxf8 {[%clk 0:00:18.2]} 26. Qd2 {[%clk 0:00:19.9]} 26... Nd3+ {[%clk
0:00:18.2]} 27. Rxd3 {[%clk 0:00:20.5]} 27... exd3 {[%clk 0:00:18.4]} 28. Qxd3
{[%clk 0:00:21.4]} 28... Ba6 {[%clk 0:00:17.2]} 29. Qd4 {[%clk 0:00:21.4]} 29...
Qc7 {[%clk 0:00:09.4]} 30. Qh8+ {[%clk 0:00:21]} 30... Ke7 {[%clk 0:00:09.5]}
31. Rd1 {[%clk 0:00:21.5]} 31... f4 {[%clk 0:00:03.9]} 32. Qg7+ {[%clk
0:00:19.6]} 32... Ke8 {[%clk 0:00:03.5]} 33. Qg8+ {[%clk 0:00:20.1]} 33... Ke7
{[%clk 0:00:03.9]} 34. Qf7# {[%clk 0:00:20.6]} 1-0

[Event "Late-Titled-Tuesday-Blitz-February-27-2024"]
[Site "Chess.com"]
[Date "2024.02.27"]
[Round "1"]
[White "ViktoriyaTarasova"]
[Black "AcostaPablo"]
[Result "0-1"]
[WhiteElo "2316"]
[BlackElo "2626"]
[TimeControl "180+1"]
[EndTime "14:07:06 PST"]
[Termination "AcostaPablo won on time"]

1. d4 {[%clk 0:03:00.9]} 1... Nf6 {[%clk 0:02:50.3]} 2. c4 {[%clk 0:02:59.6]}
2... e6 {[%clk 0:02:37.3]} 3. Nc3 {[%clk 0:02:59.4]} 3... Bb4 {[%clk 0:02:37]}
4. e3 {[%clk 0:02:59.3]} 4... O-O {[%clk 0:02:36.4]} 5. Bd3 {[%clk 0:02:59.3]}
5... b6 {[%clk 0:02:35.2]} 6. Nf3 {[%clk 0:02:58.6]} 6... Bb7 {[%clk 0:02:35.4]}
7. O-O {[%clk 0:02:58.7]} 7... d6 {[%clk 0:02:35.7]} 8. a3 {[%clk 0:02:52.5]}
8... Bxc3 {[%clk 0:02:35.5]} 9. bxc3 {[%clk 0:02:53.1]} 9... Ne4 {[%clk
0:02:35.8]} 10. Qc2 {[%clk 0:02:49.8]} 10... f5 {[%clk 0:02:35]} 11. Nd2 {[%clk
0:02:50.1]} 11... Nxd2 {[%clk 0:02:19.9]} 12. Bxd2 {[%clk 0:02:50.4]} 12... Nd7
{[%clk 0:02:17.5]} 13. f3 {[%clk 0:02:48.1]} 13... Qh4 {[%clk 0:02:10.9]} 14.
Rae1 {[%clk 0:02:42.3]} 14... Rae8 {[%clk 0:01:58.1]} 15. Re2 {[%clk 0:02:42]}
15... Nf6 {[%clk 0:01:53.3]} 16. Be1 {[%clk 0:02:41.1]} 16... Qh5 {[%clk
0:01:36.7]} 17. Bg3 {[%clk 0:02:39.8]} 17... a5 {[%clk 0:01:32.9]} 18. c5 {[%clk
0:02:34.1]} 18... bxc5 {[%clk 0:01:27.6]} 19. dxc5 {[%clk 0:02:34.1]} 19... f4
{[%clk 0:01:27.7]} 20. Bxf4 {[%clk 0:02:14.4]} 20... Qxc5 {[%clk 0:01:13.8]} 21.
Qb3 {[%clk 0:01:38]} 21... Nd5 {[%clk 0:00:50]} 22. Bg3 {[%clk 0:01:37.7]} 22...
Bc6 {[%clk 0:00:48.5]} 23. c4 {[%clk 0:01:29.7]} 23... Rb8 {[%clk 0:00:45.3]}
24. Qc2 {[%clk 0:01:00.7]} 24... Nxe3 {[%clk 0:00:41.3]} 25. Bxh7+ {[%clk
0:00:39.8]} 25... Kh8 {[%clk 0:00:40.5]} 26. Rxe3 {[%clk 0:00:40]} 26... Qxe3+
{[%clk 0:00:40.2]} 27. Bf2 {[%clk 0:00:40.4]} 27... Qh6 {[%clk 0:00:35.8]} 28.
Bd3 {[%clk 0:00:36.8]} 28... a4 {[%clk 0:00:34.9]} 29. Qe2 {[%clk 0:00:32.8]}
29... Rb3 {[%clk 0:00:34.4]} 30. Be3 {[%clk 0:00:28]} 30... Qf6 {[%clk
0:00:29.9]} 31. Bb1 {[%clk 0:00:07.1]} 31... Rfb8 {[%clk 0:00:23.7]} 32. Qc2
{[%clk 0:00:06.3]} 32... Qf5 {[%clk 0:00:22.6]} 33. Qxf5 {[%clk 0:00:05.8]}
33... exf5 {[%clk 0:00:23.2]} 34. Bxf5 {[%clk 0:00:04.2]} 34... Rxe3 {[%clk
0:00:23.3]} 0-1

[Event "Late-Titled-Tuesday-Blitz-February-27-2024"]
[Site "Chess.com"]
[Date "2024.02.27"]
[Round "1"]
[White "czasnaszachy"]
[Black "Dhaydon19"]
[Result "0-1"]
[WhiteElo "2431"]
[BlackElo "2753"]
[TimeControl "180+1"]
[EndTime "14:07:11 PST"]
[Termination "Dhaydon19 won by resignation"]

1. d4 {[%clk 0:02:54.6]} 1... c6 {[%clk 0:02:59.7]} 2. e4 {[%clk 0:02:53.5]}
2... d5 {[%clk 0:03:00]} 3. Nc3 {[%clk 0:02:53.7]} 3... dxe4 {[%clk 0:02:58.7]}
4. Nxe4 {[%clk 0:02:53.8]} 4... Bf5 {[%clk 0:02:59]} 5. Qf3 {[%clk 0:02:53.2]}
5... Bg6 {[%clk 0:02:56.2]} 6. Ne2 {[%clk 0:02:53.2]} 6... Nd7 {[%clk 0:02:55]}
7. N2g3 {[%clk 0:02:47.3]} 7... Ngf6 {[%clk 0:02:52.5]} 8. Bd3 {[%clk
0:02:47.1]} 8... e6 {[%clk 0:02:49.5]} 9. c3 {[%clk 0:02:37.7]} 9... Be7 {[%clk
0:02:47.3]} 10. O-O {[%clk 0:02:36]} 10... O-O {[%clk 0:02:41.7]} 11. Bf4 {[%clk
0:02:36]} 11... Nd5 {[%clk 0:02:39.4]} 12. Bd2 {[%clk 0:02:32.3]} 12... f5
{[%clk 0:02:32.9]} 13. Nc5 {[%clk 0:02:25.1]} 13... Bxc5 {[%clk 0:02:00.7]} 14.
dxc5 {[%clk 0:02:24.7]} 14... Nxc5 {[%clk 0:01:53.7]} 15. Bc2 {[%clk 0:02:17]}
15... Qf6 {[%clk 0:01:46.1]} 16. Rfe1 {[%clk 0:02:13.7]} 16... e5 {[%clk
0:01:40.1]} 17. c4 {[%clk 0:01:56.2]} 17... e4 {[%clk 0:01:35.1]} 18. Qe2 {[%clk
0:01:53.7]} 18... Nb6 {[%clk 0:01:32]} 19. Bb4 {[%clk 0:01:45]} 19... Nbd7
{[%clk 0:01:26.6]} 20. Bc3 {[%clk 0:01:42.4]} 20... Qf7 {[%clk 0:01:25.1]} 21.
b4 {[%clk 0:01:41.9]} 21... Ne6 {[%clk 0:01:23.8]} 22. Rad1 {[%clk 0:01:38.6]}
22... Nb6 {[%clk 0:01:22.3]} 23. Bb3 {[%clk 0:01:36.2]} 23... Rad8 {[%clk
0:01:18.5]} 24. a4 {[%clk 0:01:31.1]} 24... c5 {[%clk 0:01:13.3]} 25. a5 {[%clk
0:01:27.3]} 25... Nd7 {[%clk 0:01:11.6]} 26. Rd6 {[%clk 0:01:15.6]} 26... cxb4
{[%clk 0:01:06.5]} 27. Bxb4 {[%clk 0:01:15.1]} 27... Ndc5 {[%clk 0:01:06]} 28.
Rxd8 {[%clk 0:00:55.5]} 28... Rxd8 {[%clk 0:01:02.6]} 29. Ba2 {[%clk 0:00:55.6]}
29... Nd3 {[%clk 0:00:58.7]} 30. Rb1 {[%clk 0:00:53.7]} 30... Nd4 {[%clk
0:00:51]} 31. Qd1 {[%clk 0:00:39.6]} 31... Kh8 {[%clk 0:00:44.4]} 32. Bc3 {[%clk
0:00:36.7]} 32... Nc6 {[%clk 0:00:39]} 33. Ne2 {[%clk 0:00:31.9]} 33... f4
{[%clk 0:00:35.6]} 34. Nc1 {[%clk 0:00:28.3]} 34... e3 {[%clk 0:00:32.2]} 35.
Nxd3 {[%clk 0:00:26.8]} 35... Bxd3 {[%clk 0:00:29.4]} 36. Qg4 {[%clk 0:00:24]}
36... Bxb1 {[%clk 0:00:25.1]} 37. Bxb1 {[%clk 0:00:23.6]} 37... f3 {[%clk
0:00:20.3]} 38. gxf3 {[%clk 0:00:22.9]} 38... Rd1+ {[%clk 0:00:19.7]} 39. Kg2
{[%clk 0:00:22.1]} 39... Rxb1 {[%clk 0:00:20.2]} 40. Qc8+ {[%clk 0:00:20.1]}
40... Qg8 {[%clk 0:00:20.8]} 41. Qf5 {[%clk 0:00:16.1]} 41... Rc1 {[%clk
0:00:20.9]} 0-1

[Event "Late-Titled-Tuesday-Blitz-February-27-2024"]
[Site "Chess.com"]
[Date "2024.02.27"]
[Round "1"]
[White "TanitoluwaAps116"]
[Black "noblerone"]
[Result "1-0"]
[WhiteElo "2904"]
[BlackElo "2486"]
[TimeControl "180+1"]
[EndTime "14:07:12 PST"]
[Termination "TanitoluwaAps116 won on time"]

1. e4 {[%clk 0:03:00.9]} 1... d5 {[%clk 0:02:50.7]} 2. exd5 {[%clk 0:03:00.7]}
2... Qxd5 {[%clk 0:02:51.6]} 3. Nc3 {[%clk 0:03:01]} 3... Qd8 {[%clk 0:02:51.1]}
4. d4 {[%clk 0:03:00.8]} 4... Nf6 {[%clk 0:02:51.6]} 5. Nf3 {[%clk 0:03:00.2]}
5... Bg4 {[%clk 0:02:52]} 6. Be3 {[%clk 0:02:59.6]} 6... e6 {[%clk 0:02:51.9]}
7. Be2 {[%clk 0:03:00.3]} 7... c6 {[%clk 0:02:51]} 8. O-O {[%clk 0:02:57.7]}
8... Bd6 {[%clk 0:02:48.2]} 9. h3 {[%clk 0:02:57.8]} 9... Bh5 {[%clk 0:02:45.4]}
10. Ne5 {[%clk 0:02:55.9]} 10... Bxe2 {[%clk 0:02:44.4]} 11. Qxe2 {[%clk
0:02:56.8]} 11... O-O {[%clk 0:02:42.6]} 12. Rad1 {[%clk 0:02:55.8]} 12... Nbd7
{[%clk 0:02:42.2]} 13. Bg5 {[%clk 0:02:51.2]} 13... Qa5 {[%clk 0:02:34.9]} 14.
f4 {[%clk 0:02:34.3]} 14... Qc7 {[%clk 0:02:22.3]} 15. Rd3 {[%clk 0:02:22.7]}
15... Nd5 {[%clk 0:01:40.1]} 16. Rg3 {[%clk 0:01:55.2]} 16... Nxc3 {[%clk
0:01:31.1]} 17. bxc3 {[%clk 0:01:56.1]} 17... f5 {[%clk 0:01:19.6]} 18. Bh6
{[%clk 0:01:47.7]} 18... Bxe5 {[%clk 0:01:17.5]} 19. fxe5 {[%clk 0:01:42.1]}
19... Rf7 {[%clk 0:01:15.7]} 20. Qh5 {[%clk 0:01:40]} 20... Nf8 {[%clk
0:01:08.7]} 21. Bd2 {[%clk 0:01:33.1]} 21... Ng6 {[%clk 0:01:08]} 22. Qf3 {[%clk
0:01:20.8]} 22... Qd7 {[%clk 0:01:05.3]} 23. Rb1 {[%clk 0:01:02.2]} 23... Rd8
{[%clk 0:00:53]} 24. Bg5 {[%clk 0:00:58.7]} 24... Re8 {[%clk 0:00:51]} 25. Qd3
{[%clk 0:00:57.1]} 25... a6 {[%clk 0:00:43.9]} 26. a4 {[%clk 0:00:55]} 26... b5
{[%clk 0:00:40.2]} 27. axb5 {[%clk 0:00:55.9]} 27... axb5 {[%clk 0:00:39.8]} 28.
c4 {[%clk 0:00:51.7]} 28... bxc4 {[%clk 0:00:33.5]} 29. Qxc4 {[%clk 0:00:52.6]}
29... Ne7 {[%clk 0:00:28.2]} 30. Rgb3 {[%clk 0:00:43.8]} 30... Nd5 {[%clk
0:00:24.4]} 31. Qc5 {[%clk 0:00:42.5]} 31... h6 {[%clk 0:00:23.2]} 32. Bd2
{[%clk 0:00:31]} 32... f4 {[%clk 0:00:23.3]} 33. c4 {[%clk 0:00:26.3]} 33... Ne3
{[%clk 0:00:21.5]} 34. Bxe3 {[%clk 0:00:26.6]} 34... fxe3 {[%clk 0:00:22.4]} 35.
Rxe3 {[%clk 0:00:26.6]} 35... Ref8 {[%clk 0:00:21.5]} 36. Reb3 {[%clk
0:00:20.6]} 36... Kh7 {[%clk 0:00:16.1]} 37. Qd6 {[%clk 0:00:18.8]} 37... Qc8
{[%clk 0:00:13.6]} 38. Rb8 {[%clk 0:00:16.9]} 1-0

[Event "Late-Titled-Tuesday-Blitz-February-27-2024"]
[Site "Chess.com"]
[Date "2024.02.27"]
[Round "1"]
[White "ukchessbomber"]
[Black "ChessFanNM"]
[Result "1-0"]
[WhiteElo "2638"]
[BlackElo "2339"]
[TimeControl "180+1"]
[EndTime "14:07:15 PST"]
[Termination "ukchessbomber won on time"]

1. c4 {[%clk 0:02:49.4]} 1... e6 {[%clk 0:02:59]} 2. h3 {[%clk 0:02:49.8]} 2...
d5 {[%clk 0:02:58.3]} 3. e3 {[%clk 0:02:50.1]} 3... Nf6 {[%clk 0:02:56.4]} 4.
Nf3 {[%clk 0:02:50.4]} 4... c5 {[%clk 0:02:54.4]} 5. cxd5 {[%clk 0:02:50.2]}
5... exd5 {[%clk 0:02:54.4]} 6. d4 {[%clk 0:02:51.1]} 6... Nc6 {[%clk
0:02:53.3]} 7. Be2 {[%clk 0:02:49.6]} 7... Be6 {[%clk 0:02:46.2]} 8. O-O {[%clk
0:02:48.8]} 8... Be7 {[%clk 0:02:44.5]} 9. b3 {[%clk 0:02:45.5]} 9... O-O {[%clk
0:02:39.5]} 10. dxc5 {[%clk 0:02:43.9]} 10... Ne4 {[%clk 0:02:34.6]} 11. Bb2
{[%clk 0:02:42.8]} 11... Bxc5 {[%clk 0:02:30.5]} 12. Nc3 {[%clk 0:02:41.5]}
12... Qa5 {[%clk 0:02:10.5]} 13. Rc1 {[%clk 0:02:37.3]} 13... Ba3 {[%clk
0:01:59.5]} 14. Bxa3 {[%clk 0:02:10.8]} 14... Nxc3 {[%clk 0:01:54.6]} 15. Rxc3
{[%clk 0:02:09.7]} 15... Qxc3 {[%clk 0:01:50.6]} 16. Bxf8 {[%clk 0:02:10.6]}
16... Rxf8 {[%clk 0:01:48.9]} 17. Bb5 {[%clk 0:02:06.2]} 17... Rd8 {[%clk
0:01:41]} 18. Bxc6 {[%clk 0:02:03.9]} 18... bxc6 {[%clk 0:01:39.4]} 19. Qc1
{[%clk 0:02:04.8]} 19... Qa5 {[%clk 0:01:24.6]} 20. Qxc6 {[%clk 0:02:03.7]}
20... Qxa2 {[%clk 0:01:24]} 21. Nd4 {[%clk 0:02:03.7]} 21... Qa5 {[%clk
0:00:57.3]} 22. Nxe6 {[%clk 0:01:57.2]} 22... fxe6 {[%clk 0:00:57.3]} 23. Qxe6+
{[%clk 0:01:58.1]} 23... Kh8 {[%clk 0:00:56.8]} 24. Rc1 {[%clk 0:01:57.8]} 24...
h6 {[%clk 0:00:55]} 25. Qe5 {[%clk 0:01:52.6]} 25... Rg8 {[%clk 0:00:43.6]} 26.
Rc6 {[%clk 0:01:50.7]} 26... Qe1+ {[%clk 0:00:39.1]} 27. Kh2 {[%clk 0:01:50.7]}
27... Kh7 {[%clk 0:00:34.8]} 28. Qf5+ {[%clk 0:01:26.4]} 28... Kh8 {[%clk
0:00:33.4]} 29. Rc7 {[%clk 0:01:19.2]} 29... Qa5 {[%clk 0:00:28.3]} 30. Rd7
{[%clk 0:01:13.5]} 30... Qa6 {[%clk 0:00:16.9]} 31. Qxd5 {[%clk 0:01:11.8]}
31... Qf6 {[%clk 0:00:15.9]} 32. Rf7 {[%clk 0:01:11.4]} 32... Qg6 {[%clk
0:00:15.6]} 33. Rxa7 {[%clk 0:01:10.4]} 33... Rf8 {[%clk 0:00:12.3]} 34. Ra8
{[%clk 0:01:10.1]} 34... Rxa8 {[%clk 0:00:10.2]} 35. Qxa8+ {[%clk 0:01:11]}
35... Kh7 {[%clk 0:00:10.7]} 36. Qd5 {[%clk 0:01:11.6]} 36... Qf6 {[%clk
0:00:10.1]} 37. Qe4+ {[%clk 0:01:11.6]} 37... Kh8 {[%clk 0:00:08.9]} 38. Qe8+
{[%clk 0:01:11.2]} 38... Kh7 {[%clk 0:00:08.6]} 39. Qe4+ {[%clk 0:01:12.1]}
39... Kh8 {[%clk 0:00:08.6]} 40. b4 {[%clk 0:01:12.8]} 40... Qd6+ {[%clk
0:00:08.2]} 41. Qf4 {[%clk 0:01:13.5]} 41... Qd7 {[%clk 0:00:07.6]} 42. Qf8+
{[%clk 0:01:11.3]} 42... Kh7 {[%clk 0:00:07.4]} 43. Qc5 {[%clk 0:01:12.2]} 43...
Qf7 {[%clk 0:00:06.1]} 44. Kg1 {[%clk 0:01:11.4]} 44... Qa2 {[%clk 0:00:05]} 45.
b5 {[%clk 0:01:11.8]} 45... Qa1+ {[%clk 0:00:04.7]} 46. Kh2 {[%clk 0:01:12.2]}
46... Qf6 {[%clk 0:00:05]} 47. Qc2+ {[%clk 0:01:11.3]} 47... Kh8 {[%clk
0:00:04.6]} 48. Qc8+ {[%clk 0:00:52.8]} 48... Kh7 {[%clk 0:00:02.2]} 49. Qc2+
{[%clk 0:00:53.7]} 49... Kh8 {[%clk 0:00:02.3]} 50. Qb3 {[%clk 0:00:54.6]} 50...
Qd6+ {[%clk 0:00:01.9]} 51. g3 {[%clk 0:00:53.8]} 51... Qf6 {[%clk 0:00:01.6]}
52. Kg2 {[%clk 0:00:53.7]} 1-0